[Event "*** Titled Tuesday Blitz"]
[Site "Chess.com"]
[Date "2021.03.16"]
[Round "4"]
[White "XDPS"]
[Black "Frolyanov_D"]
[Result "1-0"]
[WhiteElo "2811"]
[BlackElo "2686"]
[TimeControl "180+1"]
[EndTime "10:39:02 PDT"]
[Termination "XDPS won on time"]

1. e4 {[%clk 0:03:00.9]} 1... c5 {[%clk 0:02:57.6]} 2. Nf3 {[%clk 0:03:00.6]}
2... e6 {[%clk 0:02:58.1]} 3. d4 {[%clk 0:03:00.3]} 3... cxd4 {[%clk 0:02:59]}
4. Nxd4 {[%clk 0:03:01.2]} 4... a6 {[%clk 0:02:59.4]} 5. c4 {[%clk 0:03:01.3]}
5... Nf6 {[%clk 0:02:54.9]} 6. Nc3 {[%clk 0:02:57.7]} 6... Qc7 {[%clk
0:02:55.3]} 7. a3 {[%clk 0:02:52.5]} 7... b6 {[%clk 0:02:54.9]} 8. Be3 {[%clk
0:02:51.1]} 8... Bb7 {[%clk 0:02:54.5]} 9. f3 {[%clk 0:02:50.1]} 9... Be7 {[%clk
0:02:54.2]} 10. Be2 {[%clk 0:02:49.7]} 10... O-O {[%clk 0:02:53]} 11. O-O {[%clk
0:02:43.9]} 11... d6 {[%clk 0:02:52.2]} 12. Qd2 {[%clk 0:02:44]} 12... Nbd7
{[%clk 0:02:52.4]} 13. Rac1 {[%clk 0:02:40.7]} 13... Rac8 {[%clk 0:02:49]} 14.
b4 {[%clk 0:02:40.8]} 14... Qb8 {[%clk 0:02:49.3]} 15. Rc2 {[%clk 0:02:39.7]}
15... Bd8 {[%clk 0:02:33]} 16. Kh1 {[%clk 0:02:35.1]} 16... Bc7 {[%clk
0:02:32.8]} 17. Bg1 {[%clk 0:02:35.3]} 17... Kh8 {[%clk 0:02:31.4]} 18. Rb1
{[%clk 0:02:35.1]} 18... Rg8 {[%clk 0:02:30.3]} 19. Na4 {[%clk 0:02:35.3]} 19...
g5 {[%clk 0:02:29.4]} 20. c5 {[%clk 0:02:34.4]} 20... dxc5 {[%clk 0:02:18.2]}
21. bxc5 {[%clk 0:02:35.3]} 21... Bf4 {[%clk 0:02:04.8]} 22. Qb4 {[%clk
0:01:57.4]} 22... bxc5 {[%clk 0:01:39.3]} 23. Nxc5 {[%clk 0:01:32.8]} 23... Nxc5
{[%clk 0:01:29.2]} 24. Rxc5 {[%clk 0:01:32.2]} 24... Ba8 {[%clk 0:00:29.5]} 25.
Rxc8 {[%clk 0:01:09.8]} 25... Qxc8 {[%clk 0:00:30.4]} 26. Qe7 {[%clk 0:01:09.6]}
26... Be5 {[%clk 0:00:11.3]} 27. Qxf7 {[%clk 0:01:02.8]} 27... g4 {[%clk
0:00:10.9]} 28. Qxe6 {[%clk 0:00:47.7]} 28... gxf3 {[%clk 0:00:10.7]} 29. Bxf3
{[%clk 0:00:46]} 29... Qc7 {[%clk 0:00:10.7]} 30. Re1 {[%clk 0:00:10.5]} 30...
Re8 {[%clk 0:00:10.5]} 31. Qf5 {[%clk 0:00:09.2]} 31... Bb7 {[%clk 0:00:10.7]}
32. Ne6 {[%clk 0:00:09.3]} 32... Qd6 {[%clk 0:00:10.5]} 33. Ng5 {[%clk
0:00:09.4]} 33... Qe7 {[%clk 0:00:09.7]} 34. Qxe5 {[%clk 0:00:08.6]} 34... Qxe5
{[%clk 0:00:10.6]} 35. Nf7+ {[%clk 0:00:09.2]} 35... Kg7 {[%clk 0:00:10.7]} 36.
Nxe5 {[%clk 0:00:10.1]} 36... Rxe5 {[%clk 0:00:11.1]} 37. Bd4 {[%clk 0:00:11]}
37... Re7 {[%clk 0:00:06.1]} 38. e5 {[%clk 0:00:11.2]} 38... Nd5 {[%clk
0:00:05.5]} 39. e6+ {[%clk 0:00:11.7]} 39... Kg6 {[%clk 0:00:05]} 40. Be4+
{[%clk 0:00:11.6]} 40... Kg5 {[%clk 0:00:04.8]} 41. Bf3 {[%clk 0:00:08]} 41...
Kg6 {[%clk 0:00:03.4]} 42. Be4+ {[%clk 0:00:08.1]} 42... Kh6 {[%clk 0:00:03.1]}
43. Bf5 {[%clk 0:00:05.8]} 43... Nf4 {[%clk 0:00:02.6]} 44. Be3 {[%clk
0:00:05.5]} 44... Kg5 {[%clk 0:00:03.1]} 45. Bh3 {[%clk 0:00:04.7]} 1-0

[Event "*** Titled Tuesday Blitz"]
[Site "Chess.com"]
[Date "2021.03.16"]
[Round "4"]
[White "Margency"]
[Black "dretch"]
[Result "1-0"]
[WhiteElo "2730"]
[BlackElo "2840"]
[TimeControl "180+1"]
[EndTime "10:39:09 PDT"]
[Termination "Margency won on time"]

1. e4 {[%clk 0:03:00.9]} 1... e6 {[%clk 0:03:00.3]} 2. d4 {[%clk 0:03:00.7]}
2... d5 {[%clk 0:03:00.8]} 3. exd5 {[%clk 0:03:01.6]} 3... exd5 {[%clk 0:03:01]}
4. c4 {[%clk 0:03:02.5]} 4... Bb4+ {[%clk 0:03:00.4]} 5. Nc3 {[%clk 0:03:02.3]}
5... Ne7 {[%clk 0:02:59.7]} 6. Bd3 {[%clk 0:03:01.8]} 6... Nbc6 {[%clk
0:02:59.2]} 7. Ne2 {[%clk 0:03:01.6]} 7... Bf5 {[%clk 0:02:55]} 8. Bxf5 {[%clk
0:02:47.5]} 8... Nxf5 {[%clk 0:02:55.9]} 9. cxd5 {[%clk 0:02:47.9]} 9... Qxd5
{[%clk 0:02:52.6]} 10. O-O {[%clk 0:02:48.1]} 10... Bxc3 {[%clk 0:02:51.1]} 11.
bxc3 {[%clk 0:02:47.4]} 11... O-O {[%clk 0:02:45.1]} 12. Nf4 {[%clk 0:02:46.8]}
12... Qc4 {[%clk 0:02:42.6]} 13. Bd2 {[%clk 0:02:18.1]} 13... Rfe8 {[%clk
0:02:36.6]} 14. Qg4 {[%clk 0:02:08.4]} 14... Nfe7 {[%clk 0:02:20.7]} 15. h4
{[%clk 0:01:58.2]} 15... Nd5 {[%clk 0:01:58.9]} 16. Nxd5 {[%clk 0:01:50.6]}
16... Qxd5 {[%clk 0:01:57.5]} 17. h5 {[%clk 0:01:50.3]} 17... Re6 {[%clk
0:01:52.5]} 18. Bf4 {[%clk 0:01:40.6]} 18... h6 {[%clk 0:01:47.6]} 19. Bxc7
{[%clk 0:01:35.8]} 19... Rc8 {[%clk 0:01:24.6]} 20. Bf4 {[%clk 0:01:30]} 20...
Ne7 {[%clk 0:01:03.8]} 21. Bd2 {[%clk 0:00:49.4]} 21... Re4 {[%clk 0:00:48]} 22.
Qf3 {[%clk 0:00:43.2]} 22... Rc6 {[%clk 0:00:46.5]} 23. Rae1 {[%clk 0:00:37.5]}
23... f5 {[%clk 0:00:46.2]} 24. Rxe4 {[%clk 0:00:35]} 24... fxe4 {[%clk
0:00:46]} 25. Qg4 {[%clk 0:00:35.3]} 25... Qxa2 {[%clk 0:00:13.8]} 26. Be3
{[%clk 0:00:35.5]} 26... Qe6 {[%clk 0:00:12.7]} 27. Qxe6+ {[%clk 0:00:34.3]}
27... Rxe6 {[%clk 0:00:13.6]} 28. c4 {[%clk 0:00:35]} 28... Rc6 {[%clk 0:00:13]}
29. Rc1 {[%clk 0:00:34.7]} 29... b5 {[%clk 0:00:12]} 30. cxb5 {[%clk 0:00:34.7]}
30... Rxc1+ {[%clk 0:00:11.5]} 31. Bxc1 {[%clk 0:00:35.4]} 31... Kf7 {[%clk
0:00:11.6]} 32. Ba3 {[%clk 0:00:33.9]} 32... Nd5 {[%clk 0:00:10.4]} 33. Bc5
{[%clk 0:00:34.2]} 33... Nc7 {[%clk 0:00:10.3]} 34. Bxa7 {[%clk 0:00:32.1]}
34... Nxb5 {[%clk 0:00:10.4]} 35. Bc5 {[%clk 0:00:31]} 35... Nc3 {[%clk
0:00:10.5]} 36. Kh2 {[%clk 0:00:31.2]} 36... Nd5 {[%clk 0:00:09.6]} 37. Kg3
{[%clk 0:00:31.1]} 37... Ke6 {[%clk 0:00:09.7]} 38. Kg4 {[%clk 0:00:31.2]} 38...
e3 {[%clk 0:00:08.5]} 39. fxe3 {[%clk 0:00:30.4]} 39... Nxe3+ {[%clk 0:00:09.4]}
40. Kf3 {[%clk 0:00:30.7]} 40... Nd5 {[%clk 0:00:08.9]} 41. g4 {[%clk
0:00:30.6]} 41... Nf6 {[%clk 0:00:08.7]} 42. Bb6 {[%clk 0:00:29.1]} 42... Kd5
{[%clk 0:00:08.3]} 43. Bc5 {[%clk 0:00:27.6]} 43... Nd7 {[%clk 0:00:07.6]} 44.
Ba7 {[%clk 0:00:26]} 44... Nf8 {[%clk 0:00:07.6]} 45. Kf4 {[%clk 0:00:25.7]}
45... Ke6 {[%clk 0:00:07.3]} 46. Bc5 {[%clk 0:00:24.8]} 46... Nd7 {[%clk
0:00:06.9]} 47. Bb4 {[%clk 0:00:22.8]} 47... Nf6 {[%clk 0:00:07]} 48. Bf8 {[%clk
0:00:22.1]} 48... Kf7 {[%clk 0:00:06.6]} 49. Bd6 {[%clk 0:00:21.2]} 49... Ke6
{[%clk 0:00:05.8]} 50. Be5 {[%clk 0:00:21.6]} 50... Ne8 {[%clk 0:00:02]} 51. Ke4
{[%clk 0:00:21.1]} 51... Ke7 {[%clk 0:00:01.5]} 52. d5 {[%clk 0:00:21.1]} 52...
Kf7 {[%clk 0:00:01.3]} 53. Kf5 {[%clk 0:00:21.3]} 53... Ke7 {[%clk 0:00:01.6]}
54. Kg6 {[%clk 0:00:20.5]} 54... Kd7 {[%clk 0:00:01.8]} 55. Kf7 {[%clk
0:00:19.5]} 55... Nd6+ {[%clk 0:00:01.7]} 56. Bxd6 {[%clk 0:00:19.6]} 56... Kxd6
{[%clk 0:00:02.6]} 57. Kxg7 {[%clk 0:00:20.3]} 1-0

[Event "*** Titled Tuesday Blitz"]
[Site "Chess.com"]
[Date "2021.03.16"]
[Round "4"]
[White "Aygehovit1992"]
[Black "youngKID"]
[Result "0-1"]
[WhiteElo "2632"]
[BlackElo "2791"]
[TimeControl "180+1"]
[EndTime "10:39:09 PDT"]
[Termination "youngKID won by resignation"]

1. e4 {[%clk 0:03:00.9]} 1... c5 {[%clk 0:02:59.8]} 2. Nf3 {[%clk 0:03:00.9]}
2... Nc6 {[%clk 0:03:00.3]} 3. Bb5 {[%clk 0:03:00.3]} 3... g6 {[%clk 0:02:59.1]}
4. O-O {[%clk 0:03:00.1]} 4... Bg7 {[%clk 0:02:59.3]} 5. Re1 {[%clk 0:03:00.3]}
5... Nf6 {[%clk 0:02:59.6]} 6. e5 {[%clk 0:02:58.6]} 6... Nd5 {[%clk 0:02:59.4]}
7. Nc3 {[%clk 0:02:57.3]} 7... Nc7 {[%clk 0:03:00.1]} 8. Bxc6 {[%clk 0:02:53.6]}
8... dxc6 {[%clk 0:03:01]} 9. h3 {[%clk 0:02:54.1]} 9... b6 {[%clk 0:02:57.5]}
10. d3 {[%clk 0:02:54]} 10... O-O {[%clk 0:02:47.7]} 11. Ne4 {[%clk 0:02:51.1]}
11... Bf5 {[%clk 0:02:35]} 12. Ng3 {[%clk 0:02:49.6]} 12... Be6 {[%clk 0:02:32]}
13. a4 {[%clk 0:02:47]} 13... c4 {[%clk 0:02:30.2]} 14. d4 {[%clk 0:02:42.6]}
14... Bd5 {[%clk 0:02:29.7]} 15. c3 {[%clk 0:02:39.5]} 15... Ne6 {[%clk
0:02:23.2]} 16. Be3 {[%clk 0:02:20.5]} 16... f5 {[%clk 0:02:08.2]} 17. exf6
{[%clk 0:02:19.4]} 17... exf6 {[%clk 0:02:09.1]} 18. Qd2 {[%clk 0:01:57.1]}
18... Qd6 {[%clk 0:01:50.8]} 19. Bh6 {[%clk 0:01:51.7]} 19... Bxf3 {[%clk
0:01:43.9]} 20. Bxg7 {[%clk 0:01:43.3]} 20... Kxg7 {[%clk 0:01:42.8]} 21. gxf3
{[%clk 0:01:43.2]} 21... Nf4 {[%clk 0:01:05.7]} 22. h4 {[%clk 0:01:41.8]} 22...
Rae8 {[%clk 0:01:04]} 23. Re4 {[%clk 0:01:36]} 23... Nd3 {[%clk 0:00:54.5]} 24.
h5 {[%clk 0:01:29.5]} 24... f5 {[%clk 0:00:50.6]} 25. h6+ {[%clk 0:01:28.5]}
25... Kf6 {[%clk 0:00:46.5]} 26. Re3 {[%clk 0:00:36.7]} 26... Rxe3 {[%clk
0:00:26]} 27. Qxe3 {[%clk 0:00:37.6]} 27... Qf4 {[%clk 0:00:22.8]} 28. Qxf4
{[%clk 0:00:34.6]} 28... Nxf4 {[%clk 0:00:22.7]} 29. a5 {[%clk 0:00:27.8]} 29...
b5 {[%clk 0:00:21.5]} 30. a6 {[%clk 0:00:25.1]} 30... Re8 {[%clk 0:00:20.3]} 31.
Kf1 {[%clk 0:00:15.8]} 31... Kg5 {[%clk 0:00:19.8]} 32. Rb1 {[%clk 0:00:13.9]}
32... Nd3 {[%clk 0:00:11.1]} 33. b3 {[%clk 0:00:11.9]} 33... cxb3 {[%clk
0:00:10]} 34. Rxb3 {[%clk 0:00:12.8]} 34... Kxh6 {[%clk 0:00:09.4]} 35. c4
{[%clk 0:00:07.1]} 35... bxc4 {[%clk 0:00:08]} 36. Rc3 {[%clk 0:00:06.3]} 36...
Re1+ {[%clk 0:00:07.9]} 37. Kg2 {[%clk 0:00:06.7]} 37... Rc1 {[%clk 0:00:08.8]}
38. Rxc1 {[%clk 0:00:03.5]} 38... Nxc1 {[%clk 0:00:09.7]} 39. Nf1 {[%clk
0:00:03.4]} 39... c3 {[%clk 0:00:09.8]} 40. Ne3 {[%clk 0:00:03.8]} 40... Nd3
{[%clk 0:00:06.8]} 41. Kf1 {[%clk 0:00:02.2]} 41... Nb4 {[%clk 0:00:06.7]} 42.
Ke2 {[%clk 0:00:02.5]} 42... Kg5 {[%clk 0:00:07.2]} 43. Nc4 {[%clk 0:00:02.6]}
43... h5 {[%clk 0:00:06.1]} 44. Nd6 {[%clk 0:00:03.1]} 44... h4 {[%clk 0:00:06]}
45. Nc8 {[%clk 0:00:03.2]} 45... h3 {[%clk 0:00:06.3]} 46. Nxa7 {[%clk
0:00:03.3]} 46... c2 {[%clk 0:00:06.6]} 47. Nc8 {[%clk 0:00:04]} 47... c1=Q
{[%clk 0:00:06.6]} 0-1

[Event "*** Titled Tuesday Blitz"]
[Site "Chess.com"]
[Date "2021.03.16"]
[Round "4"]
[White "Djager97"]
[Black "bricolageur"]
[Result "1-0"]
[WhiteElo "2483"]
[BlackElo "2275"]
[TimeControl "180+1"]
[EndTime "10:39:09 PDT"]
[Termination "Djager97 won on time"]

1. e4 {[%clk 0:03:00.9]} 1... e5 {[%clk 0:02:56.8]} 2. Nf3 {[%clk 0:03:00.9]}
2... Nc6 {[%clk 0:02:56.8]} 3. d4 {[%clk 0:03:01.4]} 3... exd4 {[%clk
0:02:56.9]} 4. Nxd4 {[%clk 0:03:02.3]} 4... Nf6 {[%clk 0:02:57.3]} 5. Nxc6
{[%clk 0:03:02.6]} 5... bxc6 {[%clk 0:02:57.3]} 6. e5 {[%clk 0:03:03.1]} 6...
Nd5 {[%clk 0:02:57.2]} 7. c4 {[%clk 0:03:02.9]} 7... Nb6 {[%clk 0:02:56.3]} 8.
Bd3 {[%clk 0:03:03.5]} 8... d5 {[%clk 0:02:53.7]} 9. exd6 {[%clk 0:03:00]} 9...
cxd6 {[%clk 0:02:53.5]} 10. O-O {[%clk 0:02:59.3]} 10... Be7 {[%clk 0:02:53.2]}
11. Qc2 {[%clk 0:02:59.2]} 11... h6 {[%clk 0:02:49.6]} 12. Nc3 {[%clk
0:02:54.8]} 12... O-O {[%clk 0:02:49.6]} 13. Bf4 {[%clk 0:02:54.2]} 13... Be6
{[%clk 0:02:42.1]} 14. b3 {[%clk 0:02:53.7]} 14... d5 {[%clk 0:02:32.4]} 15.
cxd5 {[%clk 0:02:53.7]} 15... cxd5 {[%clk 0:02:27.4]} 16. Nb5 {[%clk 0:02:45.4]}
16... Rc8 {[%clk 0:02:22.9]} 17. Qb2 {[%clk 0:02:41.8]} 17... Qd7 {[%clk
0:01:40.7]} 18. Rad1 {[%clk 0:02:36.2]} 18... Bf5 {[%clk 0:01:28.9]} 19. Bxf5
{[%clk 0:02:07.8]} 19... Qxf5 {[%clk 0:01:29]} 20. Qe5 {[%clk 0:02:08.4]} 20...
Qxe5 {[%clk 0:01:25.9]} 21. Bxe5 {[%clk 0:02:09.3]} 21... Rc2 {[%clk 0:01:07.3]}
22. a4 {[%clk 0:01:58.1]} 22... a5 {[%clk 0:00:33.8]} 23. Bc7 {[%clk 0:01:50.8]}
23... Bc5 {[%clk 0:00:31.7]} 24. Bxb6 {[%clk 0:01:36.8]} 24... Bxb6 {[%clk
0:00:31.8]} 25. Rxd5 {[%clk 0:01:37.7]} 25... Re8 {[%clk 0:00:31.2]} 26. g3
{[%clk 0:01:31.6]} 26... Ree2 {[%clk 0:00:16.4]} 27. Rf5 {[%clk 0:01:31.1]}
27... g6 {[%clk 0:00:12.9]} 28. Rf3 {[%clk 0:01:30.9]} 28... Red2 {[%clk
0:00:09.7]} 29. h4 {[%clk 0:01:27.6]} 29... Kg7 {[%clk 0:00:08.9]} 30. Kg2
{[%clk 0:01:27.4]} 30... g5 {[%clk 0:00:09.2]} 31. hxg5 {[%clk 0:01:25.5]} 31...
hxg5 {[%clk 0:00:10.1]} 32. g4 {[%clk 0:01:26.4]} 32... Kg6 {[%clk 0:00:09.3]}
33. Kg3 {[%clk 0:01:22]} 33... Bc5 {[%clk 0:00:08.6]} 34. Rf5 {[%clk 0:01:18.8]}
34... Bb6 {[%clk 0:00:08.8]} 35. Rf3 {[%clk 0:01:02.8]} 35... Bc5 {[%clk
0:00:08.5]} 36. Rf5 {[%clk 0:01:00.7]} 36... Rd3+ {[%clk 0:00:08.1]} 37. Kg2
{[%clk 0:00:56.6]} 37... Rdd2 {[%clk 0:00:08.6]} 38. Nc7 {[%clk 0:00:43.2]}
38... Bxf2 {[%clk 0:00:07.6]} 39. R1xf2 {[%clk 0:00:36]} 39... Rxf2+ {[%clk
0:00:08.5]} 40. Rxf2 {[%clk 0:00:36]} 40... Rxc7 {[%clk 0:00:09.4]} 41. Rf5
{[%clk 0:00:32.9]} 41... Rc3 {[%clk 0:00:09.7]} 42. Rb5 {[%clk 0:00:31]} 42...
Rd3 {[%clk 0:00:08.5]} 43. Kf2 {[%clk 0:00:20]} 43... f6 {[%clk 0:00:09]} 44.
Ke2 {[%clk 0:00:17.8]} 44... Rg3 {[%clk 0:00:09.2]} 45. Rxa5 {[%clk 0:00:18]}
45... Rxb3 {[%clk 0:00:08.6]} 46. Rb5 {[%clk 0:00:16.5]} 46... Ra3 {[%clk
0:00:06.9]} 47. Rb4 {[%clk 0:00:16.8]} 47... Kf7 {[%clk 0:00:06]} 48. Kd2 {[%clk
0:00:17]} 48... Ke6 {[%clk 0:00:06.3]} 49. Kc2 {[%clk 0:00:17.5]} 49... Kd5
{[%clk 0:00:04.9]} 50. Kb2 {[%clk 0:00:18]} 50... Rg3 {[%clk 0:00:04.7]} 51. a5
{[%clk 0:00:18.4]} 51... Rg2+ {[%clk 0:00:04.6]} 52. Kb3 {[%clk 0:00:17.9]}
52... Kc5 {[%clk 0:00:04.9]} 53. a6 {[%clk 0:00:16.4]} 1-0

[Event "*** Titled Tuesday Blitz"]
[Site "Chess.com"]
[Date "2021.03.16"]
[Round "4"]
[White "MrChampion_Coach"]
[Black "oskariot"]
[Result "1-0"]
[WhiteElo "2510"]
[BlackElo "2700"]
[TimeControl "180+1"]
[EndTime "10:39:10 PDT"]
[Termination "MrChampion_Coach won by checkmate"]

1. d4 {[%clk 0:03:00.9]} 1... Nf6 {[%clk 0:02:58.8]} 2. c4 {[%clk 0:03:00.8]}
2... c5 {[%clk 0:02:57.3]} 3. d5 {[%clk 0:02:58.1]} 3... b5 {[%clk 0:02:57.5]}
4. cxb5 {[%clk 0:02:56.5]} 4... a6 {[%clk 0:02:57.9]} 5. bxa6 {[%clk 0:02:57.1]}
5... g6 {[%clk 0:02:58.3]} 6. Nc3 {[%clk 0:02:57.1]} 6... Bxa6 {[%clk
0:02:58.8]} 7. e4 {[%clk 0:02:56.9]} 7... Bxf1 {[%clk 0:02:59.7]} 8. Kxf1 {[%clk
0:02:57.2]} 8... d6 {[%clk 0:03:00.6]} 9. g3 {[%clk 0:02:56.9]} 9... Bg7 {[%clk
0:03:00.6]} 10. Nf3 {[%clk 0:02:55.4]} 10... O-O {[%clk 0:03:00.3]} 11. Kg2
{[%clk 0:02:55.5]} 11... Nbd7 {[%clk 0:03:00.7]} 12. Qe2 {[%clk 0:02:51.4]}
12... Qa5 {[%clk 0:03:00.6]} 13. h3 {[%clk 0:02:37.8]} 13... Rfb8 {[%clk
0:02:58.9]} 14. Rd1 {[%clk 0:02:34.8]} 14... Ne8 {[%clk 0:02:46.4]} 15. Bg5
{[%clk 0:02:00.6]} 15... Qa6 {[%clk 0:02:42.3]} 16. Qc2 {[%clk 0:01:54.9]} 16...
Kf8 {[%clk 0:02:28.1]} 17. a4 {[%clk 0:01:41.6]} 17... Qc4 {[%clk 0:02:23.6]}
18. Nd2 {[%clk 0:01:28.3]} 18... Qb4 {[%clk 0:02:22.2]} 19. Rdb1 {[%clk
0:01:00.5]} 19... Nc7 {[%clk 0:02:16.9]} 20. Ra3 {[%clk 0:00:45.5]} 20... Ne5
{[%clk 0:01:40]} 21. Bf4 {[%clk 0:00:29.7]} 21... Qb7 {[%clk 0:01:07.8]} 22. a5
{[%clk 0:00:24.3]} 22... Qa6 {[%clk 0:01:05.7]} 23. Bxe5 {[%clk 0:00:15.2]}
23... Bxe5 {[%clk 0:01:06.6]} 24. b3 {[%clk 0:00:15.6]} 24... Kg8 {[%clk
0:01:02.2]} 25. Ra4 {[%clk 0:00:13.5]} 25... Qb7 {[%clk 0:00:46.9]} 26. Nc4
{[%clk 0:00:11.7]} 26... Bg7 {[%clk 0:00:44.1]} 27. Nb6 {[%clk 0:00:10.4]} 27...
Ra6 {[%clk 0:00:41.1]} 28. b4 {[%clk 0:00:10.6]} 28... cxb4 {[%clk 0:00:39.6]}
29. Rbxb4 {[%clk 0:00:10.4]} 29... Qa7 {[%clk 0:00:39.9]} 30. Nb5 {[%clk
0:00:09.7]} 30... Nxb5 {[%clk 0:00:39.6]} 31. Rxb5 {[%clk 0:00:09.9]} 31... Qb7
{[%clk 0:00:34.5]} 32. Qc6 {[%clk 0:00:09.1]} 32... Bc3 {[%clk 0:00:25.1]} 33.
Qxc3 {[%clk 0:00:07.4]} 33... Ra7 {[%clk 0:00:23.2]} 34. Qc6 {[%clk 0:00:07.4]}
34... Qa6 {[%clk 0:00:23.5]} 35. Rab4 {[%clk 0:00:06.6]} 35... Kg7 {[%clk
0:00:22.9]} 36. Rc4 {[%clk 0:00:06]} 36... h5 {[%clk 0:00:22.4]} 37. Rcb4 {[%clk
0:00:06.6]} 37... h4 {[%clk 0:00:22.7]} 38. Qc3+ {[%clk 0:00:07.2]} 38... Kg8
{[%clk 0:00:22.6]} 39. gxh4 {[%clk 0:00:08.1]} 39... Rbb7 {[%clk 0:00:22.3]} 40.
h5 {[%clk 0:00:08.6]} 40... Rc7 {[%clk 0:00:22.8]} 41. Qg3 {[%clk 0:00:08.5]}
41... Kg7 {[%clk 0:00:22.3]} 42. hxg6 {[%clk 0:00:09.1]} 42... fxg6 {[%clk
0:00:23.2]} 43. e5 {[%clk 0:00:10]} 43... Rc5 {[%clk 0:00:21.5]} 44. exd6 {[%clk
0:00:10.2]} 44... Rxb5 {[%clk 0:00:21.8]} 45. Qc3+ {[%clk 0:00:09.4]} 45... Kg8
{[%clk 0:00:21.3]} 46. Rh4 {[%clk 0:00:09.2]} 46... Kf7 {[%clk 0:00:09.6]} 47.
d7 {[%clk 0:00:09.7]} 47... Rxd7 {[%clk 0:00:03.7]} 48. Rh7+ {[%clk 0:00:09.6]}
48... Ke8 {[%clk 0:00:03.5]} 49. Qh8# {[%clk 0:00:10.1]} 1-0

[Event "*** Titled Tuesday Blitz"]
[Site "Chess.com"]
[Date "2021.03.16"]
[Round "4"]
[White "Sergey85Rodchenkov"]
[Black "Joker_Gumble"]
[Result "1/2-1/2"]
[WhiteElo "2526"]
[BlackElo "2334"]
[TimeControl "180+1"]
[EndTime "10:39:10 PDT"]
[Termination "Game drawn by repetition"]

1. e4 {[%clk 0:02:38.7]} 1... c5 {[%clk 0:02:59.4]} 2. Nf3 {[%clk 0:02:38.5]}
2... Nc6 {[%clk 0:02:59.9]} 3. d4 {[%clk 0:02:38.8]} 3... cxd4 {[%clk
0:03:00.8]} 4. Nxd4 {[%clk 0:02:39.3]} 4... Nf6 {[%clk 0:03:01.1]} 5. Nc3 {[%clk
0:02:39.5]} 5... g6 {[%clk 0:03:01.5]} 6. Nxc6 {[%clk 0:02:38.7]} 6... bxc6
{[%clk 0:03:01.5]} 7. e5 {[%clk 0:02:39.1]} 7... Ng8 {[%clk 0:03:01.5]} 8. f4
{[%clk 0:02:39.4]} 8... Bg7 {[%clk 0:03:01.5]} 9. Bc4 {[%clk 0:02:39.5]} 9...
Nh6 {[%clk 0:02:58.2]} 10. O-O {[%clk 0:02:39.3]} 10... O-O {[%clk 0:02:51.2]}
11. Kh1 {[%clk 0:02:39.4]} 11... d6 {[%clk 0:02:40.3]} 12. exd6 {[%clk
0:02:38.6]} 12... exd6 {[%clk 0:02:41.2]} 13. Be3 {[%clk 0:02:38]} 13... d5
{[%clk 0:02:40.4]} 14. Bb3 {[%clk 0:02:37]} 14... d4 {[%clk 0:02:39.8]} 15. Qe2
{[%clk 0:02:25.8]} 15... dxc3 {[%clk 0:01:46]} 16. bxc3 {[%clk 0:02:24.6]} 16...
a5 {[%clk 0:01:38]} 17. Rad1 {[%clk 0:02:14.4]} 17... Qe7 {[%clk 0:01:35.4]} 18.
Qd2 {[%clk 0:02:07.2]} 18... Bg4 {[%clk 0:01:33.3]} 19. Rde1 {[%clk 0:02:06.6]}
19... a4 {[%clk 0:01:24.1]} 20. Bc4 {[%clk 0:02:04.9]} 20... Rad8 {[%clk
0:01:05.5]} 21. Qf2 {[%clk 0:02:03.2]} 21... Bxc3 {[%clk 0:00:52.6]} 22. Rb1
{[%clk 0:02:02.4]} 22... Be6 {[%clk 0:00:48.3]} 23. Bc5 {[%clk 0:02:00]} 23...
Qf6 {[%clk 0:00:42.9]} 24. Bxe6 {[%clk 0:01:52.6]} 24... fxe6 {[%clk 0:00:40.6]}
25. Bxf8 {[%clk 0:01:52]} 25... Rxf8 {[%clk 0:00:41.5]} 26. Qc5 {[%clk
0:01:48.4]} 26... Bd4 {[%clk 0:00:41]} 27. Qxc6 {[%clk 0:01:47.7]} 27... Ng4
{[%clk 0:00:40.9]} 28. Qf3 {[%clk 0:01:46.2]} 28... Qh4 {[%clk 0:00:40.1]} 29.
h3 {[%clk 0:01:38]} 29... Nf2+ {[%clk 0:00:37.6]} 30. Kh2 {[%clk 0:01:38.3]}
30... Qxf4+ {[%clk 0:00:31.3]} 31. Qxf4 {[%clk 0:01:38.1]} 31... Rxf4 {[%clk
0:00:32.2]} 32. g3 {[%clk 0:01:33]} 32... Rf7 {[%clk 0:00:28.3]} 33. Kg2 {[%clk
0:01:29.8]} 33... e5 {[%clk 0:00:17.5]} 34. Rb4 {[%clk 0:01:24.5]} 34... a3
{[%clk 0:00:10.9]} 35. Rxd4 {[%clk 0:01:20.6]} 35... exd4 {[%clk 0:00:10.6]} 36.
Rxf2 {[%clk 0:01:20.8]} 36... Rb7 {[%clk 0:00:07.3]} 37. Rf3 {[%clk 0:01:15.5]}
37... Rb2 {[%clk 0:00:07.8]} 38. Rxa3 {[%clk 0:01:15.4]} 38... Rxc2+ {[%clk
0:00:08.4]} 39. Kf3 {[%clk 0:01:14.7]} 39... Kg7 {[%clk 0:00:05]} 40. Ke4 {[%clk
0:01:10.5]} 40... Rd2 {[%clk 0:00:03.1]} 41. g4 {[%clk 0:01:08.5]} 41... h5
{[%clk 0:00:03.1]} 42. g5 {[%clk 0:01:08.5]} 42... Kf7 {[%clk 0:00:02.8]} 43.
Ra7+ {[%clk 0:01:05.4]} 43... Ke6 {[%clk 0:00:03.7]} 44. Ra6+ {[%clk 0:01:05.4]}
44... Kf7 {[%clk 0:00:04.1]} 45. a4 {[%clk 0:01:05.2]} 45... h4 {[%clk 0:00:04]}
46. Rd6 {[%clk 0:01:01.3]} 46... Rh2 {[%clk 0:00:03.9]} 47. Rxd4 {[%clk
0:00:59.3]} 47... Rxh3 {[%clk 0:00:04.8]} 48. Kf4 {[%clk 0:00:57.7]} 48... Ra3
{[%clk 0:00:05.1]} 49. Kg4 {[%clk 0:00:57]} 49... h3 {[%clk 0:00:05.8]} 50. Rf4+
{[%clk 0:00:47.2]} 50... Kg7 {[%clk 0:00:05]} 51. Rf3 {[%clk 0:00:46.4]} 51...
Rxa4+ {[%clk 0:00:05]} 52. Kxh3 {[%clk 0:00:46.7]} 52... Rb4 {[%clk 0:00:05]}
53. Kg3 {[%clk 0:00:46.5]} 53... Ra4 {[%clk 0:00:05.3]} 54. Re3 {[%clk
0:00:42.2]} 54... Rb4 {[%clk 0:00:05.5]} 55. Rf3 {[%clk 0:00:41.8]} 55... Rc4
{[%clk 0:00:05.1]} 56. Rf4 {[%clk 0:00:42]} 56... Rc5 {[%clk 0:00:04.9]} 57. Kg4
{[%clk 0:00:42.2]} 57... Rc1 {[%clk 0:00:05.5]} 58. Ra4 {[%clk 0:00:41.7]} 58...
Rg1+ {[%clk 0:00:06.1]} 59. Kf4 {[%clk 0:00:41.7]} 59... Rf1+ {[%clk 0:00:06.7]}
60. Kg4 {[%clk 0:00:38.4]} 60... Rg1+ {[%clk 0:00:06.8]} 61. Kf4 {[%clk
0:00:38]} 61... Rf1+ {[%clk 0:00:07.3]} 62. Kg4 {[%clk 0:00:38.2]} 62... Rg1+
{[%clk 0:00:07.4]} 1/2-1/2